bitfinex/quotes_SOLUSD_20230110
["timestamp","ask_amount","ask_price","bid_price","bid_amount"]
[1673325883004,20.0,15.941,15.93,158.9226187]
[1673325885631,112.0641,15.942,15.93,191.1863614]
[1673325885840,112.0641,15.942,15.931,20.0]
[1673325886154,112.0641,15.942,15.932,69.8126187]
[1673325886465,47.05,15.946,15.932,11.5877]
[1673325886783,20.0,15.945,15.932,43.8514427]
[1673325886995,47.06,15.944,15.932,43.8514427]
[1673325887189,165.3591,15.944,15.932,43.8514427]
[1673325887611,20.0,15.943,15.932,43.8514427]
[1673325890051,47.06,15.944,15.933,15.93717909]
[1673325890236,67.05,15.947,15.933,35.93717909]
[1673325890452,67.05,15.947,15.933,15.93717909]
[1673325890872,67.05,15.947,15.932,43.8514427]
[1673325891093,67.05,15.947,15.932,32.2637427]
[1673325891303,19.00061681,15.946,15.93,47.17]
[1673325891525,67.05,15.945,15.93,47.17]
[1673325891712,20.0,15.943,15.93,47.17]
[1673325891918,47.06,15.942,15.93,47.17]
[1673325892561,20.0,15.941,15.93,47.17]
[1673325893306,47.06,15.942,15.93,47.17]
[1673325894135,20.0,15.941,15.93,47.17]
[1673325894771,47.06,15.942,15.93,47.17]
[1673325895915,47.06,15.942,15.931,15.93717909]
[1673325896131,20.0,15.941,15.931,15.93717909]
[1673325897712,47.06,15.942,15.931,15.93717909]
[1673325897919,157.2615,15.944,15.932,20.0]
[1673325898138,966.16913778,15.973,15.933,20.0]
[1673325898139,47.05,15.947,15.933,20.0]
[1673325898352,47.04,15.949,15.934,26.53]
[1673325898548,47.04,15.949,15.934,42.46717909]
[1673325898759,20.0,15.947,15.935,37.0]
[1673325898980,67.05,15.947,15.935,52.93717909]
[1673325899296,67.05,15.947,15.936,15.93717909]
[1673325899501,67.05,15.947,15.937,20.0]
[1673325900349,47.05,15.947,15.938,17.0]
[1673325900569,5.6095781,15.95,15.939,20.0]
[1673325900570,47.04,15.949,15.939,20.0]
[1673325900779,20.0,15.947,15.939,20.0]
[1673325900992,47.05,15.947,15.939,20.0]
[1673325901178,47.05,15.947,15.937,20.0]
[1673325901387,47.04,15.949,15.938,17.0]
[1673325901602,47.04,15.949,15.939,20.0]
[1673325902148,47.04,15.949,15.938,20.0]
[1673325902344,47.04,15.949,15.939,17.0]
[1673325902553,20.0,15.947,15.94,20.0]
[1673325902975,67.05,15.947,15.94,20.0]
[1673325903179,67.05,15.947,15.936,20.0]
[1673325903395,67.05,15.947,15.93,27.17]
[1673325903607,67.05,15.947,15.931,15.93717909]
[1673325904773,47.05,15.947,15.932,20.0]
[1673325904990,117.2629,15.948,15.933,48.94]
[1673325905301,117.2629,15.948,15.934,20.0]
[1673325905613,117.2629,15.948,15.936,20.0]
[1673325906434,117.2629,15.948,15.938,20.0]
[1673325906644,117.2629,15.948,15.939,20.0]
[1673325906850,117.2629,15.948,15.939,35.93717909]
[1673325907070,117.2629,15.948,15.94,15.93717909]
[1673325907492,117.2629,15.948,15.941,20.0]
[1673325909904,117.2629,15.948,15.942,17.0]
[1673325910637,117.2629,15.948,15.943,20.0]
[1673325910848,117.2629,15.948,15.944,17.0]
[1673325911082,5.6095781,15.95,15.944,17.0]
[1673325911290,5.6095781,15.95,15.941,20.0]
[1673325911481,5.6095781,15.95,15.93,134.77]
[1673325911482,47.04,15.949,15.939,15.93717909]
[1673325911706,5.6095781,15.95,15.941,20.0]
[1673325912020,25.6095781,15.95,15.94,46.95]
[1673325912222,25.6095781,15.95,15.94,20.0]
[1673325912432,47.04,15.949,15.94,20.0]
[1673325912643,20.0,15.948,15.94,20.0]
[1673325913058,47.05,15.947,15.931,20.0]
[1673325913272,20.0,15.946,15.931,20.0]
[1673325913485,47.05,15.945,15.931,20.0]
[1673325913699,110.8635,15.944,15.931,20.0]
[1673325913898,47.06,15.943,15.931,35.93717909]
[1673325914107,117.759,15.947,15.933,48.20092179]
[1673325914322,117.759,15.947,15.94,26.95]
[1673325914745,117.759,15.947,15.941,15.93717909]
[1673325915817,117.759,15.947,15.942,17.0]
[1673325916220,117.759,15.947,15.94,26.95]
[1673325916429,117.759,15.947,15.941,20.0]
[1673325916959,117.759,15.947,15.942,17.0]
[1673325918003,117.759,15.947,15.942,37.0]
[1673325919267,5.6095781,15.95,15.942,37.0]
[1673325919468,5.6095781,15.95,15.943,20.0]
[1673325919919,5.6095781,15.95,15.943,35.93717909]
[1673325920110,5.6095781,15.95,15.943,20.0]
[1673325920536,5.6095781,15.95,15.944,57.30717909]
[1673325920865,5.6095781,15.95,15.946,20.0]
[1673325921073,5.6095781,15.95,15.946,61.54]
[1673325921280,5.6095781,15.95,15.947,20.0]
[1673325921492,5.6095781,15.95,15.948,20.0]
[1673325921684,5.6095781,15.95,15.949,20.0]
[1673325923711,5.6095781,15.95,15.948,20.0]
[1673325924012,5.6095781,15.95,15.949,20.0]
[1673325926328,5.6095781,15.95,15.949,37.0]
[1673325927471,47.02,15.957,15.949,84.72951693]
[1673325927691,67.01,15.959,15.95,20.0]
[1673325928104,67.01,15.959,15.951,20.0]
[1673325929487,47.01,15.959,15.952,20.0]
[1673325929684,46.99,15.965,15.952,20.0]
[1673325930011,20.0,15.959,15.952,20.0]
[1673325930526,20.0,15.959,15.951,71.41285026]
[1673325930741,20.0,15.959,15.952,51.41285026]
[1673325932745,119.4768,15.96,15.952,51.41285026]
[1673325932959,20.0,15.959,15.952,51.41285026]
[1673325933362,47.01,15.958,15.951,20.0]
[1673325933683,20.0,15.957,15.949,20.0]
[1673325933896,20.0,15.957,15.947,15.93717909]
[1673325934140,47.02,15.956,15.949,51.41285026]
[1673325934521,349.4352555,15.989,15.956,41.37314547]
[1673325934725,117.3559,15.98,15.958,59.13785893]
[1673325934941,117.3559,15.98,15.959,75.5781]
[1673325935161,117.3559,15.98,15.96,154.1]
[1673325935480,20.0,15.979,15.961,67.01]
[1673325935665,117.3559,15.98,15.962,37.0]
[1673325935881,117.3559,15.98,15.964,20.0]
[1673325936091,117.3559,15.98,15.965,78.55375]
[1673325936314,117.3559,15.98,15.966,20.0]
[1673325936528,117.3559,15.98,15.967,66.99]
[1673325936727,117.3559,15.98,15.967,113.72801562]
[1673325936930,117.3559,15.98,15.968,35.93717909]
[1673325937144,117.3559,15.98,15.97,20.0]
[1673325937467,46.92,15.989,15.972,20.0]
[1673325937681,163.315,15.989,15.971,62.91717909]
[1673325937893,163.315,15.989,15.973,15.93717909]
[1673325938108,163.315,15.989,15.971,46.98]
[1673325938109,20.0,15.988,15.971,46.98]
[1673325938314,46.93,15.987,15.971,46.98]
[1673325938743,20.0,15.986,15.971,46.98]
[1673325939060,20.0,15.984,15.97,26.88]
[1673325939261,20.0,15.984,15.971,40.0]
[1673325939670,20.0,15.984,15.971,20.0]
[1673325939876,128.4632,15.984,15.972,17.0]
[1673325940318,20.0,15.982,15.971,20.0]
[1673325940636,20.0,15.982,15.97,20.0]
[1673325940848,20.0,15.98,15.97,20.0]
[1673325941891,20.0,15.98,15.971,17.0]
[1673325943260,20.0,15.98,15.971,32.93717909]
[1673325945765,20.0,15.981,15.971,32.93717909]
[1673325946187,130.126,15.982,15.971,79.91717909]
[1673325947971,20.0,15.982,15.971,79.91717909]
[1673325949173,19.6846657,15.982,15.971,79.91717909]
[1673325949352,160.6005,15.987,15.971,79.91717909]
[1673325949548,113.6705,15.987,15.972,20.0]
[1673325949758,113.6705,15.987,15.974,20.0]
[1673325949978,113.6705,15.987,15.975,66.96]
[1673325950182,113.6705,15.987,15.975,82.89291125]
[1673325950395,113.6705,15.987,15.976,32.93291125]
[1673325950608,113.6705,15.987,15.977,66.96]
[1673325950929,113.6705,15.987,15.978,17.0]
[1673325951146,113.6705,15.987,15.979,20.0]
[1673325951351,113.6705,15.987,15.98,17.0]
[1673325951673,113.6705,15.987,15.981,20.0]
[1673325951879,113.6705,15.987,15.982,17.0]
[1673325952720,20.0,15.99,15.982,17.0]
[1673325955978,20.0,15.991,15.982,17.0]
[1673325956195,20.0,15.991,15.982,32.93291125]
[1673325956611,46.91,15.993,15.983,20.0]
[1673325956823,20.0,15.995,15.983,15.93291125]
[1673325957015,20.0,15.995,15.984,17.0]
[1673325957437,20.0,15.995,15.984,32.93291125]
[1673325957858,114.8727,15.997,15.984,32.93291125]
[1673325958175,114.8727,15.997,15.986,20.0]
[1673325958384,5.6095781,15.998,15.987,37.0]
[1673325958594,5.6095781,15.998,15.989,20.0]
[1673325958822,5.6095781,15.998,15.99,20.0]
[1673325959018,5.6095781,15.998,15.991,20.0]
[1673325959229,5.6095781,15.998,15.991,35.93291125]
[1673325959556,5.6095781,15.998,15.992,32.93291125]
[1673325960084,5.6095781,15.998,15.993,15.93291125]
[1673325960487,5.6095781,15.998,15.99,46.58]
[1673325960917,5.6095781,15.998,15.991,15.93291125]
[1673325961139,5.6095781,15.998,15.992,20.0]
[1673325961353,5.6095781,15.998,15.991,15.93291125]
[1673325961657,5.6095781,15.998,15.992,15.93291125]
[1673325968188,5.6095781,15.998,15.99,46.58]
[1673325968802,5.6095781,15.998,15.99,20.0]
[1673325969012,66.9,15.997,15.986,35.04018968]
[1673325969231,66.9,15.997,15.97,134.29]
[1673325969447,114.1175,15.996,15.975,30.0]
[1673325969663,66.91,15.995,15.975,30.0]
[1673325969968,20.0,15.994,15.975,30.0]
[1673325970180,46.91,15.993,15.974,46.97]
[1673325970587,46.91,15.993,15.975,20.0]
[1673325970799,20.0,15.992,15.975,35.93291125]
[1673325971008,46.92,15.991,15.976,15.93291125]
[1673325971220,46.92,15.991,15.977,20.0]
[1673325971647,20.0,15.99,15.977,35.93291125]
[1673325971845,20.0,15.988,15.977,35.93291125]
[1673325973638,46.92,15.989,15.977,35.93291125]
[1673325974693,20.0,15.988,15.977,20.0]
[1673325975100,20.0,15.988,15.976,20.0]
[1673325975323,20.0,15.988,15.975,20.0]
[1673325975324,20.0,15.986,15.975,20.0]
[1673325976581,20.0,15.986,15.976,15.93291125]
[1673325976791,119.8517,15.987,15.977,20.0]
[1673325977000,166.7817,15.987,15.977,20.0]
[1673325977327,119.8517,15.987,15.977,20.0]
[1673325980048,119.8517,15.987,15.978,20.0]
[1673325980371,145.38515538,16.008,15.98,134.31]
[1673325980372,46.91,15.994,15.98,134.31]
[1673325980570,110.7878,15.994,15.981,46.95]
[1673325980780,46.91,15.993,15.983,20.0]
[1673325981308,110.7878,15.994,15.983,20.0]
[1673325981939,110.7878,15.994,15.984,17.0]
[1673325983109,110.7878,15.994,15.984,32.93291125]
[1673325983506,110.7878,15.994,15.985,20.0]
[1673325984364,46.9,15.997,15.986,17.0]
[1673325984569,116.0507781,15.998,15.987,20.0]
[1673325984779,116.0507781,15.998,15.988,20.0]
[1673325984986,116.0507781,15.998,15.989,20.0]
[1673325985208,116.0507781,15.998,15.989,35.93291125]
[1673325986047,20.0,15.997,15.989,35.93291125]
[1673325986250,20.0,15.997,15.989,20.0]
[1673325986466,66.9,15.997,15.989,20.0]
[1673325986676,66.9,15.997,15.985,20.0]
[1673325987523,66.9,15.997,15.984,15.93291125]
[1673325987719,20.0,15.997,15.985,62.86291125]
[1673325987929,116.0507781,15.998,15.985,62.86291125]
[1673325987930,116.0507781,15.998,15.986,20.0]
[1673325988140,116.0507781,15.998,15.987,20.0]
[1673325988349,116.0507781,15.998,15.987,82.86291125]
[1673325988552,5.6095781,15.998,15.99,26.79]
[1673325988988,5.6095781,15.998,15.991,35.93291125]
[1673325989407,5.6095781,15.998,15.992,15.93291125]
[1673325989836,5.6095781,15.998,15.993,37.0]
[1673325990035,7.81e-05,15.998,15.993,37.0]
[1673325990248,7.81e-05,15.998,15.995,20.0]
[1673325990459,46.87,16.008,15.995,20.0]
[1673325990657,113.1516,16.01,16.0,133.74]
[1673325990870,113.1516,16.01,16.001,46.89]
[1673325991080,113.1516,16.01,16.0,133.49]
[1673325991081,113.1516,16.01,16.0,26.52]
[1673325991924,46.86,16.009,15.99,26.52]
[1673325992468,46.86,16.009,15.99,42.45291125]
[1673325992862,20.0,16.008,15.99,42.45291125]
[1673325993085,46.87,16.007,15.99,42.45291125]
[1673325993833,20.0,16.006,15.991,17.0]
[1673325994043,20.0,16.004,15.991,17.0]
[1673325994262,20.0,16.004,15.992,15.93291125]
[1673325994485,46.88,16.003,15.993,17.0]
[1673325995742,20.0,16.002,15.987,34.76061792]
[1673325995935,46.89,16.001,15.988,20.0]
[1673325996264,46.53,16.0,15.981,47.76617426]
[1673325996461,46.89,15.999,15.981,15.93291125]
[1673325996671,20.0,15.998,15.98,26.53]
[1673325996883,46.9,15.997,15.98,26.53]
[1673325997080,20.0,15.996,15.98,26.53]
[1673325997294,46.91,15.995,15.98,26.53]
[1673325997503,46.91,15.995,15.981,15.93291125]
[1673325997719,20.0,15.996,15.982,20.0]
[1673325997934,46.91,15.995,15.982,20.0]
[1673325998145,157.9706,15.995,15.982,15.93291125]
[1673325998374,20.0,15.998,15.983,46.94]
[1673325998573,111.0606,15.999,15.99,26.79]
[1673325999093,46.9,15.998,15.982,78.77326301]
[1673325999422,46.9,15.998,15.986,15.93291125]
[1673325999727,46.9,15.998,15.987,20.0]
[1673326000448,46.9,15.998,15.988,15.93291125]
[1673326000658,157.9506,15.999,15.989,20.0]
[1673326001095,157.9506,15.999,15.99,17.0]
[1673326002978,20.0,15.998,15.99,17.0]
[1673326003195,157.9506,15.999,15.99,17.0]
[1673326003615,20.0,15.998,15.99,17.0]
[1673326003927,157.9506,15.999,15.99,17.0]
[1673326004768,20.0,15.998,15.99,17.0]
[1673326005616,157.9506,15.999,15.99,17.0]
[1673326005825,20.0,15.998,15.99,17.0]
[1673326006036,20.0,15.998,15.989,20.0]
[1673326006672,20.0,15.996,15.98,26.77]
[1673326006897,46.91,15.995,15.98,26.77]
[1673326007290,20.0,15.994,15.98,26.77]
[1673326007596,20.0,15.992,15.98,26.77]
[1673326007825,46.92,15.991,15.98,26.77]
[1673326008452,20.0,15.99,15.98,26.77]
[1673326008982,46.92,15.991,15.98,26.77]
[1673326009178,118.4008,15.992,15.981,15.94096276]
[1673326009388,46.92,15.991,15.981,15.94096276]
[1673326009826,118.4008,15.992,15.981,15.94096276]
[1673326010040,20.0,15.991,15.981,15.94096276]
[1673326010441,66.92,15.991,15.981,15.94096276]
[1673326011082,66.92,15.991,15.98,26.77]
[1673326011290,66.92,15.991,15.975,46.96]
[1673326011500,66.92,15.991,15.978,20.0]
[1673326013276,66.92,15.991,15.979,20.0]
[1673326013492,46.92,15.991,15.98,20.0]
[1673326013917,20.0,15.99,15.98,20.0]
[1673326014128,46.92,15.989,15.98,20.0]
[1673326014460,20.0,15.99,15.98,20.0]
[1673326016011,46.92,15.991,15.981,15.94096276]
[1673326016220,234.3763,15.992,15.981,15.94096276]
[1673326016450,234.3763,15.992,15.981,35.94096276]
[1673326016789,234.3763,15.992,15.982,15.94096276]
[1673326018030,46.91,15.995,15.982,15.94096276]
[1673326018343,118.2577,16.0,15.984,20.0]
[1673326018344,46.89,15.999,15.984,20.0]
[1673326018552,118.2577,16.0,15.99,26.69]
[1673326020841,118.2577,16.0,15.991,17.0]
[1673326023176,66.88,16.004,15.991,32.94096276]
[1673326023385,66.88,16.004,15.992,20.0]
[1673326023918,66.88,16.004,15.992,35.94096276]
[1673326024636,20.0,16.004,15.991,46.92]
[1673326024841,20.0,16.004,15.992,17.0]
[1673326025056,20.0,16.004,15.99,26.69]
[1673326025275,20.0,16.004,15.991,32.94096276]
[1673326025499,20.0,16.004,15.992,20.0]
[1673326025895,20.0,16.004,15.993,15.94096276]
[1673326028964,160.5956,16.005,15.994,17.0]
[1673326029176,20.0,16.004,15.994,17.0]
[1673326029365,46.88,16.005,15.994,17.0]
[1673326029575,46.87,16.006,15.995,35.94096276]
[1673326029787,46.87,16.007,15.996,20.0]
[1673326030012,46.87,16.007,15.996,35.94096276]
[1673326030234,46.87,16.007,15.997,20.0]
[1673326030420,46.87,16.008,15.997,20.0]
[1673326030948,46.84,16.016,16.0,26.5]
[1673326031165,20.0,16.015,16.001,20.0]
[1673326031491,46.85,16.014,16.002,17.0]
[1673326031685,46.85,16.014,16.0,26.5]
[1673326032224,46.85,16.014,16.001,20.0]
[1673326032436,46.85,16.014,16.001,37.0]
[1673326032628,46.84,16.016,16.001,37.0]
[1673326033175,20.0,16.015,16.001,37.0]
[1673326033488,46.85,16.014,16.001,20.0]
[1673326034738,46.85,16.014,16.0,26.61]
[1673326035907,46.85,16.015,16.0,26.61]
[1673326036123,20.0,16.014,16.001,17.0]
[1673326036336,46.85,16.013,16.001,17.0]
[1673326037054,66.84,16.016,16.002,35.94096276]
[1673326037266,46.84,16.016,16.002,35.94096276]
[1673326037479,46.84,16.016,16.003,15.94096276]
[1673326038530,115.9236,16.017,16.01,26.61]
[1673326038938,115.9236,16.017,16.005,20.0]
[1673326038939,115.9236,16.017,16.009,15.94096276]
[1673326039150,115.9236,16.017,16.01,20.0]
[1673326039380,20.0,16.016,15.991,62.2296]
[1673326039581,46.85,16.015,15.992,41.54423]
[1673326039902,17.0,16.014,15.99,26.36]
[1673326040106,66.85,16.013,15.991,20.0]
[1673326040315,20.0,16.012,15.991,66.92]
[1673326040640,183.4174,16.011,15.991,82.86096276]
[1673326040957,20.0,16.01,15.991,82.86096276]
[1673326041145,46.86,16.009,15.991,82.86096276]
[1673326041571,20.0,16.008,15.991,82.86096276]
[1673326041776,46.87,16.007,15.992,17.0]
[1673326042001,20.0,16.006,15.992,17.0]
[1673326042213,46.88,16.005,15.992,17.0]
[1673326042406,46.87,16.007,15.992,17.0]
[1673326042617,46.87,16.007,15.992,37.0]
[1673326043042,46.87,16.007,15.993,15.94096276]
[1673326043256,66.86,16.01,15.994,20.0]
[1673326044087,66.86,16.01,15.995,20.0]
[1673326044616,66.86,16.01,15.994,20.0]
[1673326045043,66.86,16.01,15.995,17.0]
[1673326045250,46.86,16.01,15.996,20.0]
[1673326045456,44.36,16.01,15.994,66.91]
[1673326045677,44.36,16.01,15.996,15.94096276]
[1673326045994,44.36,16.01,15.997,17.0]
[1673326046192,44.36,16.01,15.998,20.0]
[1673326046523,20.0,16.009,15.999,17.0]
[1673326046723,46.87,16.008,15.999,17.0]
[1673326046951,46.86,16.01,16.0,20.0]
[1673326047577,46.86,16.01,15.997,20.0]
[1673326047792,20.0,16.009,15.993,20.0]
[1673326048014,46.87,16.008,15.993,20.0]
[1673326048217,20.0,16.007,15.992,40.0]
[1673326048406,46.87,16.006,15.992,20.0]
[1673326048618,46.87,16.006,15.991,20.0]
[1673326048838,46.87,16.006,15.992,20.0]
[1673326049897,46.87,16.006,15.993,17.0]
[1673326050215,46.87,16.008,15.995,20.0]
[1673326050420,46.86,16.009,15.996,17.0]
[1673326050615,46.86,16.009,15.997,20.0]
[1673326051248,46.86,16.01,15.995,20.0]
[1673326051586,46.86,16.01,15.995,35.94096276]
[1673326051773,46.86,16.01,15.996,20.0]
[1673326052197,20.0,16.009,15.997,17.0]
[1673326052416,20.0,16.007,15.998,20.0]
[1673326052628,46.87,16.008,15.998,20.0]
[1673326052819,46.86,16.01,15.998,20.0]
[1673326053029,20.0,16.009,15.996,20.0]
[1673326053345,46.87,16.008,15.996,20.0]
[1673326055345,46.87,16.008,15.997,17.0]
[1673326055564,46.87,16.008,15.998,20.0]
[1673326056078,46.87,16.008,15.999,17.0]
[1673326056306,46.87,16.008,16.0,20.0]
[1673326059364,20.0,16.007,16.0,20.0]
[1673326059568,46.87,16.008,16.0,20.0]
[1673326059884,46.87,16.008,15.996,20.0]
[1673326060199,20.0,16.007,15.995,20.0]
[1673326060411,46.87,16.008,15.995,20.0]
[1673326060620,46.87,16.008,15.995,35.94096276]
[1673326060830,46.87,16.008,16.0,26.39]
[1673326061022,116.5574,16.011,16.0,26.39]
[1673326061667,20.0,16.009,15.999,15.94096276]
[1673326061866,20.0,16.009,16.0,20.0]
[1673326062068,20.0,16.01,16.0,20.0]
[1673326062504,116.5574,16.011,16.0,20.0]
[1673326062925,116.5574,16.011,16.001,20.0]
[1673326063876,46.84,16.018,16.003,20.0]
[1673326064080,156.3782,16.02,16.004,66.88]
[1673326064292,20.0,16.019,16.005,20.0]
[1673326064504,20.0,16.019,16.006,46.87]
[1673326064725,20.0,16.019,16.007,20.0]
[1673326065125,46.84,16.018,16.006,20.0]
[1673326065662,46.84,16.018,16.007,20.0]
[1673326065876,156.3782,16.02,16.007,35.94096276]
[1673326066191,115.1025,16.023,16.01,26.61]
[1673326066386,46.83,16.02,16.008,20.0]
[1673326066822,46.83,16.02,16.008,15.94096276]
[1673326067138,46.83,16.02,16.009,20.0]
[1673326067347,160.6005,16.02,16.009,20.0]
[1673326067670,20.0,16.019,16.006,20.0]
[1673326068399,46.84,16.018,16.006,20.0]
[1673326069772,46.83,16.019,16.007,20.0]
[1673326069986,160.6005,16.02,16.007,20.0]
[1673326070305,20.0,16.019,16.007,20.0]
[1673326070514,20.0,16.019,16.007,15.94096276]
[1673326070726,20.0,16.019,16.008,20.0]
[1673326071261,20.0,16.019,16.006,20.0]
[1673326072097,46.84,16.018,16.006,20.0]
[1673326072295,46.84,16.018,16.003,20.0]
[1673326072505,20.0,16.017,16.001,66.89]
[1673326072732,166.1054,16.016,16.0,26.56]
[1673326072920,20.0,16.015,15.997,46.9]
[1673326073135,46.85,16.014,15.998,30.0]
[1673326073349,46.85,16.014,15.994,46.91]
[1673326073769,20.0,16.009,15.99,26.56]
[1673326073972,20.0,16.009,15.987,46.93]
[1673326073973,183.1354,16.008,15.987,46.93]
[1673326074292,19.00061681,16.007,15.981,46.95]
[1673326074523,46.87,16.006,15.981,46.95]
[1673326074716,20.0,16.005,15.982,20.0]
[1673326074924,46.88,16.004,15.983,46.94]
[1673326075135,20.0,16.003,15.983,46.94]
[1673326075343,46.88,16.002,15.983,46.94]
[1673326075550,136.2654,16.008,15.983,46.94]
[1673326075551,46.85,16.014,15.99,133.02]
[1673326075759,155.2434,16.016,16.0,26.61]
[1673326075972,20.0,16.015,16.001,46.89]
[1673326076186,46.85,16.014,16.001,62.83096276]
[1673326076401,66.85,16.015,16.002,15.94096276]
[1673326076617,20.0,16.015,16.002,15.94096276]
[1673326077050,20.0,16.015,16.003,17.0]
[1673326077353,155.2434,16.016,16.004,15.94096276]
[1673326077564,108.4034,16.016,16.004,15.94096276]
[1673326078394,20.0,16.015,16.004,15.94096276]
[1673326078928,155.2434,16.016,16.004,15.94096276]
[1673326079787,20.0,16.015,16.004,15.94096276]
[1673326080092,160.6005,16.02,16.006,20.0]
[1673326080501,20.0,16.019,16.007,15.94096276]
[1673326080715,46.84,16.018,16.008,20.0]
[1673326081147,46.84,16.018,16.008,35.94096276]
[1673326081356,46.84,16.018,16.009,17.0]
[1673326081578,46.84,16.018,16.01,20.0]
[1673326081996,20.0,16.017,16.01,20.0]
[1673326082305,20.0,16.017,16.006,15.94096276]
[1673326082527,20.0,16.017,16.007,20.0]
[1673326083250,20.0,16.017,16.005,20.0]
[1673326085459,20.0,16.017,16.002,46.88]
[1673326085789,20.0,16.015,16.002,15.94096276]
[1673326086174,46.85,16.014,15.995,45.5770625]
[1673326086384,83.85,16.014,15.996,15.94096276]
[1673326086922,20.0,16.013,15.996,15.94096276]
[1673326087125,66.86,16.012,15.996,15.94096276]
[1673326087757,20.0,16.011,15.996,15.94096276]
[1673326087982,46.86,16.01,15.996,15.94096276]
[1673326088717,111.5111,16.011,16.0,26.63]
[1673326089118,111.5111,16.011,16.001,15.94096276]
[1673326089859,111.5111,16.011,16.002,17.0]
[1673326090285,111.5111,16.011,16.003,15.94096276]
[1673326090493,20.0,16.013,16.003,15.94096276]
[1673326091005,46.85,16.014,16.003,15.94096276]
[1673326091211,46.84,16.016,16.003,15.94096276]
[1673326091885,46.85,16.014,16.004,17.0]
[1673326092079,46.85,16.014,16.0,26.63]
[1673326092285,20.0,16.013,15.996,46.9]
[1673326092494,46.86,16.012,15.997,20.0]
[1673326092691,20.0,16.011,15.997,20.0]
[1673326092899,46.86,16.01,15.997,20.0]
[1673326093109,20.0,16.009,15.996,20.0]
[1673326093316,46.87,16.008,15.996,20.0]
[1673326093952,46.86,16.012,15.997,15.94096276]
[1673326094181,46.86,16.012,15.998,40.0]
[1673326094377,46.86,16.012,16.0,26.63]
[1673326094795,46.86,16.012,16.001,15.94096276]
[1673326095017,20.0,16.011,15.998,20.0]
[1673326095215,46.86,16.01,15.996,20.0]
[1673326096489,129.5209,16.011,15.997,20.0]
[1673326097013,109.5209,16.011,15.997,20.0]
[1673326097232,109.5209,16.011,15.998,15.94096276]
[1673326097434,109.5209,16.011,15.999,20.0]
[1673326099645,66.86,16.01,15.999,20.0]
[1673326100066,66.86,16.01,16.0,15.94096276]
[1673326100700,20.0,16.01,16.0,15.94096276]
[1673326101430,109.5209,16.011,16.0,15.94096276]
[1673326102160,20.0,16.01,16.0,15.94096276]
[1673326103216,109.5209,16.011,16.0,15.94096276]
[1673326103958,109.5209,16.011,16.0,42.57096276]